Workbook

Sheet Opći podaci
A1: Prilog 1.
A2: OPĆI PODACI ZA IZDAVATELJE | N2: 1
N3: 2
A4: Razdoblje izvještavanja: | E4: 2025-01-01 | G4: do | H4: 2025-09-30 | N4: 3
N5: 4
B6: Godina: | E6: 2025
B8: Kvartal: | E8: 3
A10: Tromjesečni financijski izvještaji
A11: Matični broj (MB): | C11: 03440494 | F11: Oznaka matične države članice izdavatelja: | H11: HR
A13: Matični broj subjekta (MBS): | C13: 060007090
A15: Osobni identifikacijski broj (OIB): | C15: 48351740621 | G15: LEI: | H15: 549300NFX18SRZHNT751
B17: Šifra ustanove: | C17: 382
A19: Tvrtka izdavatelja: | C19: AD PLASTIK d.d.
A21: Poštanski broj i mjesto: | C21: 21210 | G21: SOLIN
A23: Ulica i kućni broj: | C23: Matoševa 8
A25: Adresa e-pošte: | C25: informacije@adplastik.hr
A27: Internet adresa: | C27: www.adplastik.hr
A29: Broj zaposlenih (krajem izvještajnog razdoblja): | C29: 1782
A31: Konsolidirani izvještaj: | C31: KD | D31: (KN-nije konsolidirano/KD-konsolidirano) | I31: KN | J31: KD
A33: Revidirano: | C33: RN | D33: (RN-nije revidirano/RD-revidirano) | I33: RN | J33: RD
A35: Tvrtke ovisnih subjekata (prema MSFI): | E35: Sjedište: | J35: MB:
A37: AD PLASTIK d.d. | E37: Solin, Hrvatska | J37: 03440494
A39: AO AD PLASTIK TOGLIATTI | E39: Samara, Ruska Federacija | J39: 1036300221935
A41: AD PLASTIK d.o.o. | E41: Novo Mesto, Slovenija | J41: 1214985000
A43: ZAO AD PLASTIK KALUGA | E43: Kaluga, Ruska Federacija | J43: 1074710000320
A45: ADP d.o.o. | E45: Mladenovac, Srbija | J45: 20787538
A47: AD Plastik Tisza Kft. | E47: Tiszaujvaros, Mađarska | J47: 12800821-2932-133-05
J48: Da
J49: Ne
A50: Knjigovodstveni servis: | C50: Ne | E50: (Da/Ne)
G51: (tvrtka knjigovodstvenog servisa)
A52: Osoba za kontakt: | C52: Jurun Krešimir
C53: (unosi se samo prezime i ime osobe za kontakt)
A54: Telefon: | C54: 021/206-663
A56: Adresa e-pošte: | C56: kresimir.jurun@adplastik.hr
A58: Revizorsko društvo:
C59: (tvrtka revizorskog društva)
A60: Ovlašteni revizor:
C61: (ime i prezime)

Sheet Bilanca
A1: BILANCA
A2: stanje na dan 30.9.2025
A3: u eurima
A4: Obveznik: AD PLASTIK d.d.
A5: Naziv pozicije | G5: AOP oznaka | H5: Zadnji dan prethodne poslovne godine | I5: Na izvještajni datum tekućeg razdoblja
A6: 1 | G6: 2 | H6: 3 | I6: 4
A8: A) POTRAŽIVANJA ZA UPISANI A NEUPLAĆENI KAPITAL | G8: 001 | H8: 0 | I8: 0
A9: B) DUGOTRAJNA IMOVINA (AOP 003+010+020+031+036) | G9: 002 | H9: =H10+H17+H27+H38+H43 -> 123,918,752 | I9: =I10+I17+I27+I38+I43 -> 122,776,492
A10: I. NEMATERIJALNA IMOVINA (AOP 004 do 009) | G10: 003 | H10: =H11+H12+H13+H14+H15+H16 -> 11,930,938 | I10: =I11+I12+I13+I14+I15+I16 -> 11,410,637
A11: 1. Izdaci za razvoj | G11: 004 | H11: 6,145,036 | I11: 7,073,461
A12: 2. Koncesije, patenti, licencije, robne i uslužne marke, softver i ostala prava | G12: 005 | H12: 183,988 | I12: 144,459
A13: 3. Goodwill | G13: 006 | H13: 2,390,912 | I13: 2,390,912
A14: 4. Predujmovi za nabavu nematerijalne imovine | G14: 007 | H14: 0 | I14: 0
A15: 5. Nematerijalna imovina u pripremi | G15: 008 | H15: 3,123,521 | I15: 1,715,058
A16: 6. Ostala nematerijalna imovina | G16: 009 | H16: 87,481 | I16: 86,747
A17: II. MATERIJALNA IMOVINA (AOP 011 do 019) | G17: 010 | H17: =H18+H19+H20+H21+H22+H23+H24+H25+H26 -> 97,877,661 | I17: =I18+I19+I20+I21+I22+I23+I24+I25+I26 -> 94,181,350
A18: 1. Zemljište | G18: 011 | H18: 18,243,681 | I18: 18,255,667
A19: 2. Građevinski objekti | G19: 012 | H19: 33,900,103 | I19: 33,915,235
A20: 3. Postrojenja i oprema | G20: 013 | H20: 29,564,961 | I20: 27,335,909
A21: 4. Alati, pogonski inventar i transportna imovina | G21: 014 | H21: 4,875,082 | I21: 4,544,254
A22: 5. Biološka imovina | G22: 015 | H22: 0 | I22: 0
A23: 6. Predujmovi za materijalnu imovinu | G23: 016 | H23: 18,610 | I23: 86,865
A24: 7. Materijalna imovina u pripremi | G24: 017 | H24: 5,510,917 | I24: 5,143,255
A25: 8. Ostala materijalna imovina | G25: 018 | H25: 2,547,119 | I25: 1,712,425
A26: 9. Ulaganje u nekretnine | G26: 019 | H26: 3,217,188 | I26: 3,187,740
A27: III. DUGOTRAJNA FINANCIJSKA IMOVINA (AOP 021 do 030) | G27: 020 | H27: =SUM(H28:H37) -> 10,812,476 | I27: =SUM(I28:I37) -> 14,329,545
A28: 1. Ulaganja u udjele (dionice) poduzetnika unutar grupe | G28: 021 | H28: 0 | I28: 0
A29: 2. Ulaganja u ostale vrijednosne papire poduzetnika unutar grupe | G29: 022 | H29: 0 | I29: 0
A30: 3. Dani zajmovi, depoziti i slično poduzetnicima unutar grupe | G30: 023 | H30: 0 | I30: 0
A31: 4.Ulaganja u udjele (dionice) društava povezanih sudjelujućim interesom | G31: 024 | H31: 10,812,476 | I31: 14,329,545
A32: 5. Ulaganja u ostale vrijednosne papire društava povezanih sudjelujućim interesom | G32: 025 | H32: 0 | I32: 0
A33: 6. Dani zajmovi, depoziti i slično društvima povezanim sudjelujućim interesom | G33: 026 | H33: 0 | I33: 0
A34: 7. Ulaganja u vrijednosne papire | G34: 027 | H34: 0 | I34: 0
A35: 8. Dani zajmovi, depoziti i slično | G35: 028 | H35: 0 | I35: 0
A36: 9. Ostala ulaganja koja se obračunavaju metodom udjela | G36: 029 | H36: 0 | I36: 0
A37: 10. Ostala dugotrajna financijska imovina | G37: 030 | H37: 0 | I37: 0
A38: IV. POTRAŽIVANJA (AOP 032 do 035) | G38: 031 | H38: =H39+H40+H41+H42 -> 0 | I38: =I39+I40+I41+I42 -> 0
A39: 1. Potraživanja od poduzetnika unutar grupe | G39: 032 | H39: 0 | I39: 0
A40: 2. Potraživanja od društava povezanih sudjelujućim interesom | G40: 033 | H40: 0 | I40: 0
A41: 3. Potraživanja od kupaca | G41: 034 | H41: 0 | I41: 0
A42: 4. Ostala potraživanja | G42: 035 | H42: 0 | I42: 0
A43: V. ODGOĐENA POREZNA IMOVINA | G43: 036 | H43: 3,297,677 | I43: 2,854,960
A44: C) KRATKOTRAJNA IMOVINA (AOP 038+046+053+063) | G44: 037 | H44: =H45+H53+H60+H70 -> 55,897,647 | I44: =I45+I53+I60+I70 -> 56,946,772
A45: I. ZALIHE (AOP 039 do 045) | G45: 038 | H45: =SUM(H46:H52) -> 23,464,390 | I45: =SUM(I46:I52) -> 21,469,166
A46: 1. Sirovine i materijal | G46: 039 | H46: 11,379,972 | I46: 10,676,636
A47: 2. Proizvodnja u tijeku | G47: 040 | H47: 1,778,737 | I47: 2,212,934
A48: 3. Gotovi proizvodi | G48: 041 | H48: 3,440,216 | I48: 3,294,175
A49: 4. Trgovačka roba | G49: 042 | H49: 5,956,287 | I49: 4,045,682
A50: 5. Predujmovi za zalihe | G50: 043 | H50: 909,178 | I50: 1,239,739
A51: 6. Dugotrajna imovina namijenjena prodaji | G51: 044 | H51: 0 | I51: 0
A52: 7. Biološka imovina | G52: 045 | H52: 0 | I52: 0
A53: II. POTRAŽIVANJA (AOP 047 do 052) | G53: 046 | H53: =SUM(H54:H59) -> 28,170,150 | I53: =SUM(I54:I59) -> 29,444,523
A54: 1. Potraživanja od poduzetnika unutar grupe | G54: 047 | H54: 0 | I54: 0
A55: 2. Potraživanja od društava povezanih sudjelujućim interesom | G55: 048 | H55: 4,744,454 | I55: 1,196,073
A56: 3. Potraživanja od kupaca | G56: 049 | H56: 20,300,197 | I56: 24,630,366
A57: 4. Potraživanja od zaposlenika i članova poduzetnika | G57: 050 | H57: 26,049 | I57: 65,050
A58: 5. Potraživanja od države i drugih institucija | G58: 051 | H58: 2,720,260 | I58: 3,326,204
A59: 6. Ostala potraživanja | G59: 052 | H59: 379,190 | I59: 226,830
A60: III. KRATKOTRAJNA FINANCIJSKA IMOVINA (AOP 054 do 062) | G60: 053 | H60: =SUM(H61:H69) -> 1,054 | I60: =SUM(I61:I69) -> 50
A61: 1. Ulaganja u udjele (dionice) poduzetnika unutar grupe | G61: 054 | H61: 0 | I61: 0
A62: 2. Ulaganja u ostale vrijednosne papire poduzetnika unutar grupe | G62: 055 | H62: 0 | I62: 0
A63: 3. Dani zajmovi, depoziti i slično poduzetnicima unutar grupe | G63: 056 | H63: 0 | I63: 0
A64: 4. Ulaganja u udjele (dionice) društava povezanih sudjelujućim interesom | G64: 057 | H64: 0 | I64: 0
A65: 5. Ulaganja u ostale vrijednosne papire društava povezanih sudjelujućim interesom | G65: 058 | H65: 0 | I65: 0
A66: 6. Dani zajmovi, depoziti i slično društvima povezanim sudjelujućim interesom | G66: 059 | H66: 0 | I66: 0
A67: 7. Ulaganja u vrijednosne papire | G67: 060 | H67: 0 | I67: 0
A68: 8. Dani zajmovi, depoziti i slično | G68: 061 | H68: 1,054 | I68: 50
A69: 9. Ostala financijska imovina | G69: 062 | H69: 0 | I69: 0
A70: IV. NOVAC U BANCI I BLAGAJNI | G70: 063 | H70: 4,262,053 | I70: 6,033,033
A71: D) PLAĆENI TROŠKOVI BUDUĆEG RAZDOBLJA I OBRAČUNATI PRIHODI | G71: 064 | H71: 1,060,350 | I71: 756,756
A72: E) UKUPNO AKTIVA (AOP 001+002+037+064) | G72: 065 | H72: =H8+H9+H44+H71 -> 180,876,749 | I72: =I8+I9+I44+I71 -> 180,480,020
A73: F) IZVANBILANČNI ZAPISI | G73: 066 | H73: 9,222,292 | I73: 8,299,160
A74: PASIVA
A75: A) KAPITAL I REZERVE (AOP 068 do 070+076+077+083+086+089) | G75: 067 | H75: =H76+H77+H78+H84+H85+H91+H94+H97 -> 98,907,353 | I75: =I76+I77+I78+I84+I85+I91+I94+I97 -> 108,936,161
A76: I. TEMELJNI (UPISANI) KAPITAL | G76: 068 | H76: 54,594,592 | I76: 54,594,592
A77: II. KAPITALNE REZERVE | G77: 069 | H77: 25,893,236 | I77: 25,893,236
A78: III. REZERVE IZ DOBITI (AOP 071+072-073+074+075) | G78: 070 | H78: =SUM(H79:H83) -> 10,012,039 | I78: =SUM(I79:I83) -> 10,012,039
A79: 1. Zakonske rezerve | G79: 071 | H79: 885,798 | I79: 885,798
A80: 2. Rezerve za vlastite dionice | G80: 072 | H80: 793,595 | I80: 793,595
A81: 3. Vlastite dionice i udjeli (odbitna stavka) | G81: 073 | H81: -793,595 | I81: -793,595
A82: 4. Statutarne rezerve | G82: 074 | H82: 16,639 | I82: 16,639
A83: 5. Ostale rezerve | G83: 075 | H83: 9,109,602 | I83: 9,109,602
A84: IV. REVALORIZACIJSKE REZERVE | G84: 076 | H84: -4,060,866 | I84: -2,757,843
A85: V. REZERVE FER VRIJEDNOSTI I OSTALO (AOP 078 do 082) | G85: 077 | H85: =H86+H87+H88+H89+H90 -> -7,725,738 | I85: =I86+I87+I88+I89+I90 -> -7,884,293
A86: 1. Fer vrijednost financijske imovine kroz ostalu sveobuhvatnu dobit (odnosno raspoložive za prodaju) | G86: 078 | H86: 0 | I86: 0
A87: 2. Učinkoviti dio zaštite novčanih tokova | G87: 079 | H87: 0 | I87: 0
A88: 3. Učinkoviti dio zaštite neto ulaganja u inozemstvu | G88: 080 | H88: 0 | I88: 0
A89: 4. Ostale rezerve fer vrijednosti | G89: 081 | H89: 0 | I89: 0
A90: 5. Tečajne razlike iz preračuna inozemnog poslovanja (konsolidacija) | G90: 082 | H90: -7,725,738 | I90: -7,884,293
A91: VI. ZADRŽANA DOBIT ILI PRENESENI GUBITAK (AOP 084-085) | G91: 083 | H91: =H92-H93 -> 18,062,299 | I91: =I92-I93 -> 19,774,116
A92: 1. Zadržana dobit | G92: 084 | H92: 18,062,299 | I92: 19,774,116
A93: 2. Preneseni gubitak | G93: 085 | H93: 0 | I93: 0
A94: VII. DOBIT ILI GUBITAK POSLOVNE GODINE (AOP 087-088) | G94: 086 | H94: =H95-H96 -> 2,131,791 | I94: =I95-I96 -> 9,304,314
A95: 1. Dobit poslovne godine | G95: 087 | H95: 2,131,791 | I95: 9,304,314
A96: 2. Gubitak poslovne godine | G96: 088 | H96: 0 | I96: 0
A97: VIII. MANJINSKI (NEKONTROLIRAJUĆI) INTERES | G97: 089 | H97: 0 | I97: 0
A98: B) REZERVIRANJA (AOP 091 do 096) | G98: 090 | H98: =SUM(H99:H104) -> 465,618 | I98: =SUM(I99:I104) -> 465,768
A99: 1. Rezerviranja za mirovine, otpremnine i slične obveze | G99: 091 | H99: 307,054 | I99: 306,927
A100: 2. Rezerviranja za porezne obveze | G100: 092 | H100: 0 | I100: 0
A101: 3. Rezerviranja za započete sudske sporove | G101: 093 | H101: 0 | I101: 0
A102: 4. Rezerviranja za troškove obnavljanja prirodnih bogatstava | G102: 094 | H102: 0 | I102: 0
A103: 5. Rezerviranja za troškove u jamstvenim rokovima | G103: 095 | H103: 0 | I103: 0
A104: 6. Druga rezerviranja | G104: 096 | H104: 158,564 | I104: 158,841
A105: C) DUGOROČNE OBVEZE (AOP 098 do 108) | G105: 097 | H105: =SUM(H106:H116) -> 20,168,465 | I105: =SUM(I106:I116) -> 21,958,018
A106: 1. Obveze prema poduzetnicima unutar grupe | G106: 098 | H106: 0 | I106: 0
A107: 2. Obveze za zajmove, depozite i slično poduzetnika unutar grupe | G107: 099 | H107: 0 | I107: 0
A108: 3. Obveze prema društvima povezanim sudjelujućim interesom | G108: 100 | H108: 0 | I108: 0
A109: 4. Obveze za zajmove, depozite i slično društava povezanih sudjelujućim interesom | G109: 101 | H109: 0 | I109: 0
A110: 5. Obveze za zajmove, depozite i slično | G110: 102 | H110: 0 | I110: 25,500
A111: 6. Obveze prema bankama i drugim financijskim institucijama | G111: 103 | H111: 17,850,312 | I111: 19,930,970
A112: 7. Obveze za predujmove | G112: 104 | H112: 0 | I112: 0
A113: 8. Obveze prema dobavljačima | G113: 105 | H113: 0 | I113: 0
A114: 9. Obveze po vrijednosnim papirima | G114: 106 | H114: 0 | I114: 0
A115: 10. Ostale dugoročne obveze | G115: 107 | H115: 1,380,469 | I115: 979,879
A116: 11. Odgođena porezna obveza | G116: 108 | H116: 937,684 | I116: 1,021,669
A117: D) KRATKOROČNE OBVEZE (AOP 110 do 123) | G117: 109 | H117: =SUM(H118:H131) -> 60,548,611 | I117: =SUM(I118:I131) -> 48,735,045
A118: 1. Obveze prema poduzetnicima unutar grupe | G118: 110 | H118: 0 | I118: 0
A119: 2. Obveze za zajmove, depozite i slično poduzetnika unutar grupe | G119: 111 | H119: 0 | I119: 0
A120: 3. Obveze prema društvima povezanim sudjelujućim interesom | G120: 112 | H120: 12,595 | I120: 15,133
A121: 4. Obveze za zajmove, depozite i slično društava povezanih sudjelujućim interesom | G121: 113 | H121: 0 | I121: 0
A122: 5. Obveze za zajmove, depozite i slično | G122: 114 | H122: 2,281,768 | I122: 0
A123: 6. Obveze prema bankama i drugim financijskim institucijama | G123: 115 | H123: 24,474,508 | I123: 16,461,845
A124: 7. Obveze za predujmove | G124: 116 | H124: 5,937,617 | I124: 9,136,706
A125: 8. Obveze prema dobavljačima | G125: 117 | H125: 21,671,360 | I125: 17,301,861
A126: 9. Obveze po vrijednosnim papirima | G126: 118 | H126: 0 | I126: 0
A127: 10. Obveze prema zaposlenicima | G127: 119 | H127: 1,774,895 | I127: 1,863,978
A128: 11. Obveze za poreze, doprinose i sličana davanja | G128: 120 | H128: 2,111,310 | I128: 2,110,023
A129: 12. Obveze s osnove udjela u rezultatu | G129: 121 | H129: 22,349 | I129: 22,349
A130: 13. Obveze po osnovi dugotrajne imovine namijenjene prodaji | G130: 122 | H130: 0 | I130: 0
A131: 14. Ostale kratkoročne obveze | G131: 123 | H131: 2,262,209 | I131: 1,823,150
A132: E) ODGOĐENO PLAĆANJE TROŠKOVA I PRIHOD BUDUĆEGA RAZDOBLJA | G132: 124 | H132: 786,702 | I132: 385,028
A133: F) UKUPNO – PASIVA (AOP 067+090+097+109+124) | G133: 125 | H133: =H75+H98+H105+H117+H132 -> 180,876,749 | I133: =I75+I98+I105+I117+I132 -> 180,480,020
A134: G) IZVANBILANČNI ZAPISI | G134: 126 | H134: 9,222,292 | I134: 8,299,160

Sheet RDG
A1: RAČUN DOBITI I GUBITKA
A2: u razdoblju 1.1.2025 do 30.9.2025
A3: u eurima
A4: Obveznik: AD PLASTIK d.d.
A5: Naziv pozicije | G5: AOP oznaka | H5: Isto razdoblje prethodne godine | J5: Tekuće razdoblje
H6: Kumulativ | I6: Tromjesečje | J6: Kumulativ | K6: Tromjesečje
A7: 1 | G7: 2 | H7: 3 | I7: 4 | J7: 5 | K7: 6
A8: I. POSLOVNI PRIHODI (AOP 002 do 006) | G8: 001 | H8: =SUM(H9:H13) -> 111,525,017 | I8: =SUM(I9:I13) -> 31,226,382 | J8: =SUM(J9:J13) -> 115,201,711 | K8: =SUM(K9:K13) -> 40,023,085
A9: 1. Prihodi od prodaje s poduzetnicima unutar grupe | G9: 002 | H9: 0 | I9: 0 | J9: 0 | K9: 0
A10: 2. Prihodi od prodaje (izvan grupe) | G10: 003 | H10: 107,575,543 | I10: 30,191,569 | J10: 113,637,477 | K10: 39,615,138
A11: 3. Prihodi na temelju upotrebe vlastitih proizvoda, robe i usluga | G11: 004 | H11: 124,129 | I11: 2,126 | J11: 148,943 | K11: 139,830
A12: 4. Ostali poslovni prihodi s poduzetnicima unutar grupe | G12: 005 | H12: 0 | I12: 0 | J12: 0 | K12: 0
A13: 5. Ostali poslovni prihodi (izvan grupe) | G13: 006 | H13: 3,825,345 | I13: 1,032,687 | J13: 1,415,291 | K13: 268,117
A14: II. POSLOVNI RASHODI (AOP 08+009+013+017+018+019+022+029) | G14: 007 | H14: =H15+H16+H20+H24+H25+H26+H29+H36 -> 110,342,878 | I14: =I15+I16+I20+I24+I25+I26+I29+I36 -> 31,498,167 | J14: =J15+J16+J20+J24+J25+J26+J29+J36 -> 110,278,147 | K14: =K15+K16+K20+K24+K25+K26+K29+K36 -> 38,773,938
A15: 1. Promjene vrijednosti zaliha proizvodnje u tijeku i gotovih proizvoda | G15: 008 | H15: 229,358 | I15: 142,915 | J15: -214,808 | K15: -158,567
A16: 2. Materijalni troškovi (AOP 010 do 012) | G16: 009 | H16: =SUM(H17:H19) -> 73,262,087 | I16: =SUM(I17:I19) -> 19,363,652 | J16: =SUM(J17:J19) -> 69,953,734 | K16: =SUM(K17:K19) -> 25,110,544
A17: a) Troškovi sirovina i materijala | G17: 010 | H17: 46,659,384 | I17: 14,066,167 | J17: 52,321,349 | K17: 17,710,645
A18: b) Troškovi prodane robe | G18: 011 | H18: 18,117,305 | I18: 2,564,384 | J18: 8,666,478 | K18: 4,063,454
A19: c) Ostali vanjski troškovi | G19: 012 | H19: 8,485,398 | I19: 2,733,101 | J19: 8,965,907 | K19: 3,336,445
A20: 3. Troškovi osoblja (AOP 014 do 016) | G20: 013 | H20: =SUM(H21:H23) -> 23,101,197 | I20: =SUM(I21:I23) -> 7,713,420 | J20: =SUM(J21:J23) -> 25,424,979 | K20: =SUM(K21:K23) -> 8,622,962
A21: a) Neto plaće i nadnice | G21: 014 | H21: 14,496,816 | I21: 4,825,219 | J21: 15,747,826 | K21: 5,152,397
A22: b) Troškovi poreza i doprinosa iz plaća | G22: 015 | H22: 5,383,087 | I22: 1,803,141 | J22: 6,080,146 | K22: 2,202,290
A23: c) Doprinosi na plaće | G23: 016 | H23: 3,221,294 | I23: 1,085,060 | J23: 3,597,007 | K23: 1,268,275
A24: 4. Amortizacija | G24: 017 | H24: 7,765,868 | I24: 2,698,072 | J24: 9,053,767 | K24: 3,232,077
A25: 5. Ostali troškovi | G25: 018 | H25: 3,634,778 | I25: 1,226,808 | J25: 5,422,811 | K25: 1,856,865
A26: 6. Vrijednosna usklađenja (AOP 020+021) | G26: 019 | H26: =H27+H28 -> 0 | I26: =I27+I28 -> 0 | J26: =J27+J28 -> 0 | K26: =K27+K28 -> 0
A27: a) dugotrajne imovine osim financijske imovine | G27: 020 | H27: 0 | I27: 0 | J27: 0 | K27: 0
A28: b) kratkotrajne imovine osim financijske imovine | G28: 021 | H28: 0 | I28: 0 | J28: 0 | K28: 0
A29: 7. Rezerviranja (AOP 023 do 028) | G29: 022 | H29: =SUM(H30:H35) -> 0 | I29: =SUM(I30:I35) -> 0 | J29: =SUM(J30:J35) -> 0 | K29: =SUM(K30:K35) -> 0
A30: a) Rezerviranja za mirovine, otpremnine i slične obveze | G30: 023 | H30: 0 | I30: 0 | J30: 0 | K30: 0
A31: b) Rezerviranja za porezne obveze | G31: 024 | H31: 0 | I31: 0 | J31: 0 | K31: 0
A32: c) Rezerviranja za započete sudske sporove | G32: 025 | H32: 0 | I32: 0 | J32: 0 | K32: 0
A33: d) Rezerviranja za troškove obnavljanja prirodnih bogatstava | G33: 026 | H33: 0 | I33: 0 | J33: 0 | K33: 0
A34: e) Rezerviranja za troškove u jamstvenim rokovima | G34: 027 | H34: 0 | I34: 0 | J34: 0 | K34: 0
A35: f) Druga rezerviranja | G35: 028 | H35: 0 | I35: 0 | J35: 0 | K35: 0
A36: 8. Ostali poslovni rashodi | G36: 029 | H36: 2,349,590 | I36: 353,300 | J36: 637,664 | K36: 110,057
A37: III. FINANCIJSKI PRIHODI (AOP 031 do 040) | G37: 030 | H37: =SUM(H38:H47) -> 245,580 | I37: =SUM(I38:I47) -> 29,046 | J37: =SUM(J38:J47) -> 831,471 | K37: =SUM(K38:K47) -> 27,802
A38: 1. Prihodi od ulaganja u udjele (dionice) poduzetnika unutar grupe | G38: 031 | H38: 0 | I38: 0 | J38: 0 | K38: 0
A39: 2. Prihodi od ulaganja u udjele (dionice) društava povezanih sudjelujućim interesima | G39: 032 | H39: 0 | I39: 0 | J39: 0 | K39: 0
A40: 3. Prihodi od ostalih dugotrajnih financijskih ulaganja i zajmova poduzetnicima unutar grupe | G40: 033 | H40: 0 | I40: 0 | J40: 0 | K40: 0
A41: 4. Ostali prihodi s osnove kamata iz odnosa s poduzetnicima unutar grupe | G41: 034 | H41: 0 | I41: 0 | J41: 0 | K41: 0
A42: 5. Tečajne razlike i ostali financijski prihodi iz odnosa s poduzetnicima unutar grupe | G42: 035 | H42: 0 | I42: 0 | J42: 588,011 | K42: 0
A43: 6. Prihodi od ostalih dugotrajnih financijskih ulaganja i zajmova | G43: 036 | H43: 0 | I43: 0 | J43: 0 | K43: 0
A44: 7. Ostali prihodi s osnove kamata | G44: 037 | H44: 245,580 | I44: 29,046 | J44: 117,657 | K44: 27,802
A45: 8. Tečajne razlike i ostali financijski prihodi | G45: 038 | H45: 0 | I45: 0 | J45: 125,803 | K45: 0
A46: 9. Nerealizirani dobici (prihodi) od financijske imovine | G46: 039 | H46: 0 | I46: 0 | J46: 0 | K46: 0
A47: 10. Ostali financijski prihodi | G47: 040 | H47: 0 | I47: 0 | J47: 0 | K47: 0
A48: IV. FINANCIJSKI RASHODI (AOP 042 do 048) | G48: 041 | H48: =SUM(H49:H55) -> 1,988,462 | I48: =SUM(I49:I55) -> 1,242,666 | J48: =SUM(J49:J55) -> 1,036,652 | K48: =SUM(K49:K55) -> 483,405
A49: 1. Rashodi s osnove kamata i slični rashodi s poduzetnicima unutar grupe | G49: 042 | H49: 0 | I49: 0 | J49: 0 | K49: 0
A50: 2. Tečajne razlike i drugi rashodi s poduzetnicima unutar grupe | G50: 043 | H50: 308,067 | I50: 636,329 | J50: 0 | K50: 92,375
A51: 3. Rashodi s osnove kamata i slični rashodi | G51: 044 | H51: 1,206,960 | I51: 406,181 | J51: 1,036,652 | K51: 322,343
A52: 4. Tečajne razlike i drugi rashodi | G52: 045 | H52: 473,435 | I52: 200,156 | J52: 0 | K52: 68,687
A53: 5. Nerealizirani gubici (rashodi) od financijske imovine | G53: 046 | H53: 0 | I53: 0 | J53: 0 | K53: 0
A54: 6. Vrijednosna usklađenja financijske imovine (neto) | G54: 047 | H54: 0 | I54: 0 | J54: 0 | K54: 0
A55: 7. Ostali financijski rashodi | G55: 048 | H55: 0 | I55: 0 | J55: 0 | K55: 0
A56: V. UDIO U DOBITI OD DRUŠTAVA POVEZANIH SUDJELUJUĆIM INTERESOM | G56: 049 | H56: 2,074,880 | I56: 628,380 | J56: 5,881,230 | K56: 1,319,416
A57: VI. UDIO U DOBITI OD ZAJEDNIČKIH POTHVATA | G57: 050 | H57: 0 | I57: 0 | J57: 0 | K57: 0
A58: VII. UDIO U GUBITKU OD DRUŠTAVA POVEZANIH SUDJELUJUĆIM INTERESOM | G58: 051 | H58: 0 | I58: 0 | J58: 0 | K58: 0
A59: VIII. UDIO U GUBITKU OD ZAJEDNIČKIH POTHVATA | G59: 052 | H59: 0 | I59: 0 | J59: 0 | K59: 0
A60: IX. UKUPNI PRIHODI (AOP 001+030+049 +050) | G60: 053 | H60: =H8+H37+H56+H57 -> 113,845,477 | I60: =I8+I37+I56+I57 -> 31,883,808 | J60: 121,914,412 | K60: 41,370,303
A61: X. UKUPNI RASHODI (AOP 007+041+051 + 052) | G61: 054 | H61: =H14+H48+H58+H59 -> 112,331,340 | I61: =I14+I48+I58+I59 -> 32,740,833 | J61: 111,314,799 | K61: 39,257,343
A62: XI. DOBIT ILI GUBITAK PRIJE OPOREZIVANJA (AOP 053-054) | G62: 055 | H62: =H60-H61 -> 1,514,137 | I62: =I60-I61 -> -857,025 | J62: 10,599,613 | K62: 2,112,960
A63: 1. Dobit prije oporezivanja (AOP 053-054) | G63: 056 | H63: =+IF((H60-H61)>0,(H60-H61),0) -> 1,514,137 | I63: =+IF((I60-I61)>0,(I60-I61),0) -> 0 | J63: 10,599,613 | K63: 2,112,960
A64: 2. Gubitak prije oporezivanja (AOP 054-053) | G64: 057 | H64: =+IF((H60-H61)<0,(H60-H61),0) -> 0 | I64: =+IF((I60-I61)<0,(I60-I61),0) -> -857,025 | J64: 0 | K64: 0
A65: XII. POREZ NA DOBIT | G65: 058 | H65: 932,495 | I65: 382,838 | J65: 1,295,299 | K65: 269,289
A66: XIII. DOBIT ILI GUBITAK RAZDOBLJA (AOP 055-059) | G66: 059 | H66: =H62-H65 -> 581,642 | I66: =I62-I65 -> -1,239,863 | J66: 9,304,314 | K66: 1,843,671
A67: 1. Dobit razdoblja (AOP 055-059) | G67: 060 | H67: =+IF((H62-H65)>0,(H62-H65),0) -> 581,642 | I67: =+IF((I62-I65)>0,(I62-I65),0) -> 0 | J67: 9,304,314 | K67: 1,843,671
A68: 2. Gubitak razdoblja (AOP 059-055) | G68: 061 | H68: =+IF((H62-H65)<0,(H62-H65),0) -> 0 | I68: =+IF((I62-I65)<0,(I62-I65),0) -> -1,239,863 | J68: 0 | K68: 0
A69: PREKINUTO POSLOVANJE (popunjava poduzetnik obveznika MSFI-a samo ako ima prekinuto poslovanje)
A70: XIV. DOBIT ILI GUBITAK PREKINUTOG POSLOVANJA PRIJE OPOREZIVANJA (AOP 063-064) | G70: 062 | H70: =H71-H72 -> 0 | I70: =I71-I72 -> 0 | J70: =J71-J72 -> 0 | K70: =K71-K72 -> 0
A71: 1. Dobit prekinutog poslovanja prije oporezivanja | G71: 063 | H71: 0 | I71: 0 | J71: 0 | K71: 0
A72: 2. Gubitak prekinutog poslovanja prije oporezivanja | G72: 064 | H72: 0 | I72: 0 | J72: 0 | K72: 0
A73: XV. POREZ NA DOBIT PREKINUTOG POSLOVANJA | G73: 065 | H73: 0 | I73: 0 | J73: 0 | K73: 0
A74: 1. Dobit prekinutog poslovanja za razdoblje (AOP 062-065) | G74: 066 | H74: 0 | I74: 0 | J74: 0 | K74: 0
A75: 2. Gubitak prekinutog poslovanja za razdoblje (AOP 065-062) | G75: 067 | H75: 0 | I75: 0 | J75: 0 | K75: 0
A76: UKUPNO POSLOVANJE (popunjava samo poduzetnik obveznik MSFI-a koji ima prekinuto poslovanje)
A77: XVI. DOBIT ILI GUBITAK PRIJE OPOREZIVANJA (AOP 055+062) | G77: 068 | H77: 0 | I77: 0 | J77: 0 | K77: 0
A78: 1. Dobit prije oporezivanja (AOP 068) | G78: 069 | H78: 0 | I78: 0 | J78: 0 | K78: 0
A79: 2. Gubitak prije oporezivanja (AOP 068) | G79: 070 | H79: 0 | I79: 0 | J79: 0 | K79: 0
A80: XVII. POREZ NA DOBIT (AOP 058+065) | G80: 071 | H80: 0 | I80: 0 | J80: 0 | K80: 0
A81: XVIII. DOBIT ILI GUBITAK RAZDOBLJA (AOP 068-071) | G81: 072 | H81: 0 | I81: 0 | J81: 0 | K81: 0
A82: 1. Dobit razdoblja (AOP 068-071) | G82: 073 | H82: 0 | I82: 0 | J82: 0 | K82: 0
A83: 2. Gubitak razdoblja (AOP 071-068) | G83: 074 | H83: 0 | I83: 0 | J83: 0 | K83: 0
A84: DODATAK RDG-u (popunjava poduzetnik koji sastavlja konsolidirani godišnji financijski izvještaj)
A85: XIX. DOBIT ILI GUBITAK RAZDOBLJA (AOP 076+077) | G85: 075 | H85: =H86+H87 -> 581,642 | I85: =I86+I87 -> -1,239,863 | J85: =J86+J87 -> 9,304,314 | K85: =K86+K87 -> 1,843,671
A86: 1. Pripisana imateljima kapitala matice | G86: 076 | H86: 581,642 | I86: -1,239,863 | J86: 9,304,314 | K86: 1,843,671
A87: 2. Pripisana manjinskom (nekontrolirajućem) interesu | G87: 077 | H87: 0 | I87: 0 | J87: 0 | K87: 0
A88: IZVJEŠTAJ O OSTALOJ SVEOBUHVATNOJ DOBITI (popunjava poduzetnik obveznik primjene MSFI-a)
A89: I. DOBIT ILI GUBITAK RAZDOBLJA | G89: 078 | H89: 581,642 | I89: -1,239,863 | J89: 9,304,314 | K89: 1,843,671
A90: II. OSTALA SVEOBUHVATNA DOBIT/GUBITAK PRIJE POREZA (AOP 80 + 87) | G90: 079 | H90: =H91+H98 -> -661,800 | I90: =I91+I98 -> -1,429,124 | J90: =J91+J98 -> 723,449 | K90: -846,878
A91: III. Stavke koje neće biti reklasificirane u dobit ili gubitak (AOP 081 do 085) | G91: 080 | H91: =SUM(H92:H96) -> 0 | I91: =SUM(I92:I96) -> 0 | J91: =SUM(J92:J96) -> 0 | K91: 0
A92: 1. Promjene revalorizacijskih rezervi dugotrajne materijalne i nematerijalne imovine | G92: 081 | H92: 0 | I92: 0 | J92: 0 | K92: 0
A93: 2. Dobitak ili gubitak s osnove naknadnog vrednovanja vlasničkih vrijednosnih papira po fer vrijednosti kroz ostalu sveobuhvatnu dobit | G93: 082 | H93: 0 | I93: 0 | J93: 0 | K93: 0
A94: 3. Promjene fer vrijednosti financijske obveze po fer vrijednosti kroz račun dobiti i gubitka koja se može pripisati promjenama kreditnog rizika obveze | G94: 083 | H94: 0 | I94: 0 | J94: 0 | K94: 0
A95: 4. Aktuarski dobici/gubici po planovima definiranih primanja | G95: 084 | H95: 0 | I95: 0 | J95: 0 | K95: 0
A96: 5. Ostale stavke koje neće biti reklasificirane | G96: 085 | H96: 0 | I96: 0 | J96: 0 | K96: 0
A97: 6. Porez na dobit koji se odnosi na stavke koje neće biti reklasificirane | G97: 086 | H97: 0 | I97: 0 | J97: 0 | K97: 0
A98: IV. Stavke koje je moguće reklasificirati u dobit ili gubitak (AOP 088 do 095) | G98: 087 | H98: =SUM(H99:H106) -> -661,800 | I98: =SUM(I99:I106) -> -1,429,124 | J98: =SUM(J99:J106) -> 723,449 | K98: -846,878
A99: 1. Tečajne razlike iz preračuna inozemnog poslovanja | G99: 088 | H99: -661,800 | I99: -1,429,124 | J99: 723,449 | K99: -846,878
A100: 2. Dobitak ili gubitak s osnove naknadnog vrednovanja dužničkih vrijednosnih papira po fer vrijednosti kroz ostalu sveobuhvatnu dobit | G100: 089 | H100: 0 | I100: 0 | J100: 0 | K100: 0
A101: 4. Dobit ili gubitak s osnove učinkovite zaštite novčanih tokova | G101: 090 | H101: 0 | I101: 0 | J101: 0 | K101: 0
A102: 5. Dobit ili gubitak s osnove učinkovite zaštite neto ulaganja u inozemstvu | G102: 091 | H102: 0 | I102: 0 | J102: 0 | K102: 0
A103: 6. Udio u ostaloj sveobuhvatnoj dobiti/gubitku društava povezanih sudjelujućim interesom | G103: 092 | H103: 0 | I103: 0 | J103: 0 | K103: 0
A104: 6. Promjene fer vrijednosti vremenske vrijednosti opcije | G104: 093 | H104: 0 | I104: 0 | J104: 0 | K104: 0
A105: 7. Promjene fer vrijednosti terminskih elemenata terminskih ugovora | G105: 094 | H105: 0 | I105: 0 | J105: 0 | K105: 0
A106: 8. Ostale stavke koje je moguće reklasificirati u dobit ili gubitak | G106: 095 | H106: 0 | I106: 0 | J106: 0 | K106: 0
A107: 9. Porez na dobit koji se odnosi na stavke koje je moguće reklasificirati u dobit ili gubitak | G107: 096 | H107: 0 | I107: 0 | J107: 0 | K107: 0
A108: V. NETO OSTALA SVEOBUHVATNA DOBIT ILI GUBITAK (AOP 080+087 - 086 - 096) | G108: 097 | H108: =H91+H98-H107-H97 -> -661,800 | I108: =I91+I98-I107-I97 -> -1,429,124 | J108: =J91+J98-J107-J97 -> 723,449 | K108: -846,878
A109: VI. SVEOBUHVATNA DOBIT ILI GUBITAK RAZDOBLJA (AOP 078+097) | G109: 098 | H109: =H89+H108 -> -80,158 | I109: =I89+I108 -> -2,668,987 | J109: =J89+J108 -> 10,027,763 | K109: 996,793
A110: DODATAK Izvještaju o ostaloj sveobuhvatnoj dobiti (popunjava poduzetnik koji sastavlja konsolidirani izvještaj)
A111: VI. SVEOBUHVATNA DOBIT ILI GUBITAK RAZDOBLJA (AOP 100+101) | G111: 099 | H111: =H112+H113 -> -80,158 | I111: =I112+I113 -> -2,668,987 | J111: =J112+J113 -> 10,027,763 | K111: =K112+K113 -> 996,793
A112: 1. Pripisana imateljima kapitala matice | G112: 100 | H112: -80,158 | I112: -2,668,987 | J112: 10,027,763 | K112: 996,793
A113: 2. Pripisana manjinskom (nekontrolirajućem) interesu | G113: 101 | H113: 0 | I113: 0 | J113: 0 | K113: 0

Sheet NT_I
A1: IZVJEŠTAJ O NOVČANOM TIJEKU - Indirektna metoda
A2: u razdoblju 1.1.2025. do 30.9.2025.
A3: u eurima
A4: Obveznik: AD PLASTIK d.d.
A5: Naziv pozicije | G5: AOP oznaka | H5: Isto razdoblje prethodne godine | I5: Tekuće razdoblje
A6: 1 | G6: 2 | H6: 3 | I6: 4
A7: Novčani tokovi od poslovnih aktivnosti
A8: 1. Dobit prije oporezivanja | G8: 001 | H8: 1,514,137 | I8: 10,599,613
A9: 2. Usklađenja (AOP 003 do 010): | G9: 002 | H9: =H10+H11+H12+H13+H14+H15+H16+H17 -> 4,865,244 | I9: =I10+I11+I12+I13+I14+I15+I16+I17 -> 3,637,125
A10: a) Amortizacija | G10: 003 | H10: 7,765,868 | I10: 9,053,767
A11: b) Dobici i gubici od prodaje i vrijednosna usklađenja dugotrajne materijalne i nematerijalne imovine | G11: 004 | H11: -218,564 | I11: 239,355
A12: c) Dobici i gubici od prodaje i nerealizirani dobici i gubici i vrijednosno usklađenje financijske imovine | G12: 005 | H12: 0 | I12: 0
A13: d) Prihodi od kamata i dividendi | G13: 006 | H13: -245,580 | I13: -117,657
A14: e) Rashodi od kamata | G14: 007 | H14: 1,206,960 | I14: 1,036,652
A15: f) Rezerviranja | G15: 008 | H15: 0 | I15: 0
A16: g) Tečajne razlike (nerealizirane) | G16: 009 | H16: 190,441 | I16: -693,763
A17: h) Ostala usklađenja za nenovčane transakcije i nerealizirane dobitke i gubitke | G17: 010 | H17: -3,833,881 | I17: -5,881,229
A18: I. Povećanje ili smanjenje novčanih tokova prije promjena u radnom kapitalu (AOP 001+002) | G18: 011 | H18: =H8+H9 -> 6,379,381 | I18: =I8+I9 -> 14,236,738
A19: 3. Promjene u radnom kapitalu (AOP 013 do 016) | G19: 012 | H19: =H20+H21+H22+H23 -> 4,388,237 | I19: =I20+I21+I22+I23 -> -313,242
A20: a) Povećanje ili smanjenje kratkoročnih obveza | G20: 013 | H20: -4,449,941 | I20: 1,144,307
A21: b) Povećanje ili smanjenje kratkotrajnih potraživanja | G21: 014 | H21: 2,575,629 | I21: -3,756,368
A22: c) Povećanje ili smanjenje zaliha | G22: 015 | H22: 6,262,549 | I22: 1,995,224
A23: d) Ostala povećanja ili smanjenja radnog kapitala | G23: 016 | H23: 0 | I23: 303,595
A24: II. Novac iz poslovanja (AOP 011+012) | G24: 017 | H24: =H18+H19 -> 10,767,618 | I24: =I18+I19 -> 13,923,496
A25: 4. Novčani izdaci za kamate | G25: 018 | H25: -1,217,276 | I25: -1,112,607
A26: 5. Plaćeni porez na dobit | G26: 019 | H26: -54,091 | I26: -1,079,068
A27: A) NETO NOVČANI TOKOVI OD POSLOVNIH AKTIVNOSTI (AOP 017 do 019) | G27: 020 | H27: =H24+H25+H26 -> 9,496,251 | I27: =I24+I25+I26 -> 11,731,821
A28: Novčani tokovi od investicijskih aktivnosti
A29: 1. Novčani primici od prodaje dugotrajne materijalne i nematerijalne imovine | G29: 021 | H29: 961,316 | I29: 122,666
A30: 2. Novčani primici od prodaje financijskih instrumenata | G30: 022 | H30: 0 | I30: 0
A31: 3. Novčani primici od kamata | G31: 023 | H31: 248,404 | I31: 118,104
A32: 4. Novčani primici od dividendi | G32: 024 | H32: 617,862 | I32: 4,642,159
A33: 5. Novačani primici s osnove povrata danih zajmova i štednih uloga | G33: 025 | H33: 0 | I33: 0
A34: 6. Ostali novčani primici od investicijskih aktivnosti | G34: 026 | H34: 0 | I34: 0
A35: III. Ukupno novčani primici od investicijskih aktivnosti (AOP 021 do 026) | G35: 027 | H35: =H29+H30+H31+H32+H33+H34 -> 1,827,582 | I35: =I29+I30+I31+I32+I33+I34 -> 4,882,929
A36: 1. Novčani izdaci za kupnju dugotrajne materijalne i nematerijalne imovine | G36: 028 | H36: -10,422,059 | I36: -3,864,267
A37: 2. Novčani izdaci za stjecanje financijskih instrumenata | G37: 029 | H37: 0 | I37: 0
A38: 3. Novačani izdaci s osnove danih zajmova i štednih uloga za razdoblje | G38: 030 | H38: 0 | I38: 0
A39: 4. Stjecanje ovisnog društva, umanjeno za stečeni novac | G39: 031 | H39: 0 | I39: 0
A40: 5. Ostali novčani izdaci od investicijskih aktivnosti | G40: 032 | H40: 0 | I40: 0
A41: IV. Ukupno novčani izdaci od investicijskih aktivnosti (AOP 028 do 032) | G41: 033 | H41: =H36+H37+H38+H39+H40 -> -10,422,059 | I41: =I36+I37+I38+I39+I40 -> -3,864,267
A42: B) NETO NOVČANI TOKOVI OD INVESTICIJSKIH AKTIVNOSTI (AOP 027+033) | G42: 034 | H42: =H35+H41 -> -8,594,477 | I42: =I35+I41 -> 1,018,662
A43: Novčani tokovi od financijskih aktivnosti
A44: 1. Novčani primici od povećanja temeljnog (upisanog) kapitala | G44: 035 | H44: 0 | I44: 0
A45: 2. Novčani primici od izdavanja vlasničkih i dužničkih financijskih instrumenata | G45: 036 | H45: 0 | I45: 0
A46: 3. Novčani primici od glavnice kredita, pozajmica i drugih posudbi | G46: 037 | H46: 18,498,231 | I46: 13,812,398
A47: 4. Ostali novčani primici od financijskih aktivnosti | G47: 038 | H47: 0 | I47: 0
A48: V. Ukupno novčani primici od financijskih aktivnosti (AOP 035 do 038) | G48: 039 | H48: =H44+H45+H46+H47 -> 18,498,231 | I48: =I44+I45+I46+I47 -> 13,812,398
A49: 1. Novčani izdaci za otplatu glavnice kredita, pozajmica i drugih posudbi i dužničkih financijskih instrumenata | G49: 040 | H49: -21,082,927 | I49: -23,365,549
A50: 2. Novčani izdaci za isplatu dividendi | G50: 041 | H50: 0 | I50: 0
A51: 3. Novčani izdaci za financijski najam | G51: 042 | H51: -632,101 | I51: -718,504
A52: 4. Novčani izdaci za otkup vlastitih dionica i smanjenje temeljnog (upisanog) kapitala | G52: 043 | H52: 0 | I52: 0
A53: 5. Ostali novčani izdaci od financijskih aktivnosti | G53: 044 | H53: 0 | I53: 0
A54: VI. Ukupno novčani izdaci od financijskih aktivnosti (AOP 040 do 044) | G54: 045 | H54: =H49+H50+H51+H52+H53 -> -21,715,028 | I54: =I49+I50+I51+I52+I53 -> -24,084,053
A55: C) NETO NOVČANI TOKOVI OD FINANCIJSKIH AKTIVNOSTI (AOP 039+045) | G55: 046 | H55: =H48+H54 -> -3,216,797 | I55: =I48+I54 -> -10,271,655
A56: 1. Nerealizirane tečajne razlike po novcu i novčanim ekvivalentima | G56: 047 | H56: -13,917 | I56: -20,050
A57: D) NETO POVEĆANJE ILI SMANJENJE NOVČANNIH TOKOVA (AOP 020+034+046+047) | G57: 048 | H57: =H27+H42+H55+H56 -> -2,328,940 | I57: =I27+I42+I55+I56 -> 2,458,778
A58: E) NOVAC I NOVČANI EKVIVALENTI NA POČETKU RAZDOBLJA | G58: 049 | H58: 3,249,551 | I58: 3,043,873
A59: F) NOVAC I NOVČANI EKVIVALENTI NA KRAJU RAZDOBLJA (AOP 048+049) | G59: 050 | H59: =H57+H58 -> 920,611 | I59: =I57+I58 -> 5,502,651

Sheet NT_D
A1: IZVJEŠTAJ O NOVČANOM TIJEKU - Direktna metoda
A2: u razdoblju __.__.____ do ___.___.____
A3: u eurima
A4: Obveznik: ____________________________________________________________________
A5: Naziv pozicije | G5: AOP oznaka | H5: Isto razdoblje prethodne godine | I5: Tekuće razdoblje
A6: 1 | G6: 2 | H6: 3 | I6: 4
A7: Novčani tokovi od poslovnih aktivnosti
A8: 1. Novčani primici od kupaca | G8: 001 | H8: 0 | I8: 0
A9: 2. Novčani primici od tantijema, naknada, provizija i sl. | G9: 002 | H9: 0 | I9: 0
A10: 3. Novčani primici od osiguranja za naknadu šteta | G10: 003 | H10: 0 | I10: 0
A11: 4. Novčani primici s osnove povrata poreza | G11: 004 | H11: 0 | I11: 0
A12: 5. Ostali novčani primici od poslovnih aktivnosti | G12: 005 | H12: 0 | I12: 0
A13: I. Ukupno novčani primici od poslovnih aktivnosti (AOP 001 do 005) | G13: 006 | H13: =SUM(H8:H12) -> 0 | I13: =SUM(I8:I12) -> 0
A14: 1. Novčani izdaci dobavljačima | G14: 007 | H14: 0 | I14: 0
A15: 2. Novčani izdaci za zaposlene | G15: 008 | H15: 0 | I15: 0
A16: 3. Novčani izdaci za osiguranje za naknade šteta | G16: 009 | H16: 0 | I16: 0
A17: 4. Novčani izdaci za kamate | G17: 010 | H17: 0 | I17: 0
A18: 5. Plaćeni porez na dobit | G18: 011 | H18: 0 | I18: 0
A19: 6. Ostali novčani izdaci od poslovnih aktivnosti | G19: 012 | H19: 0 | I19: 0
A20: II. Ukupno novčani izdaci od poslovnih aktivnosti (AOP 007 do 012) | G20: 013 | H20: =SUM(H14:H19) -> 0 | I20: =SUM(I14:I19) -> 0
A21: A) NETO NOVČANI TOKOVI OD POSLOVNIH AKTIVNOSTI (AOP 006 + 013) | G21: 014 | H21: =H13+H20 -> 0 | I21: =I13+I20 -> 0
A22: Novčani tokovi od investicijskih aktivnosti
A23: 1. Novčani primici od prodaje dugotrajne materijalne i nematerijalne imovine | G23: 015 | H23: 0 | I23: 0
A24: 2. Novčani primici od prodaje financijskih instrumenata | G24: 016 | H24: 0 | I24: 0
A25: 3. Novčani primici od kamata | G25: 017 | H25: 0 | I25: 0
A26: 4. Novčani primici od dividendi | G26: 018 | H26: 0 | I26: 0
A27: 5. Novčani primici s osnove povrata danih zajmova i štednih uloga | G27: 019 | H27: 0 | I27: 0
A28: 6. Ostali novčani primici od investicijskih aktivnosti | G28: 020 | H28: 0 | I28: 0
A29: III. Ukupno novčani primici od investicijskih aktivnosti (AOP 015 do 020) | G29: 021 | H29: =SUM(H23:H28) -> 0 | I29: =SUM(I23:I28) -> 0
A30: 1. Novčani izdaci za kupnju dugotrajne materijalne i nematerijalne imovine | G30: 022 | H30: 0 | I30: 0
A31: 2. Novčani izdaci za stjecanje financijskih instrumenata | G31: 023 | H31: 0 | I31: 0
A32: 3. Novčani izdaci s osnove danih zajmova i štednih uloga | G32: 024 | H32: 0 | I32: 0
A33: 4. Stjecanje ovisnog društva, umanjeno za stečeni novac | G33: 025 | H33: 0 | I33: 0
A34: 5. Ostali novčani izdaci od investicijskih aktivnosti | G34: 026 | H34: 0 | I34: 0
A35: IV. Ukupno novčani izdaci od investicijskih aktivnosti (AOP 022 do 026) | G35: 027 | H35: =SUM(H30:H34) -> 0 | I35: =SUM(I30:I34) -> 0
A36: B) NETO NOVČANI TOKOVI OD INVESTICIJSKIH AKTIVNOSTI (AOP 021 + 027) | G36: 028 | H36: =H29+H35 -> 0 | I36: =I29+I35 -> 0
A37: Novčani tokovi od financijskih aktivnosti | G37: 0
A38: 1. Novčani primici od povećanja temeljnog (upisanog) kapitala | G38: 029 | H38: 0 | I38: 0
A39: 2. Novčani primici od izdavanja vlasničkih i dužničkih financijskih instrumenata | G39: 030 | H39: 0 | I39: 0
A40: 3. Novčani primici od glavnice kredita, pozajmica i drugih posudbi | G40: 031 | H40: 0 | I40: 0
A41: 4. Ostali novčani primici od financijskih aktivnosti | G41: 032 | H41: 0 | I41: 0
A42: V. Ukupno novčani primici od financijskih aktivnosti (AOP 029 do 032) | G42: 033 | H42: =H41+H40+H39+H38 -> 0 | I42: =I41+I40+I39+I38 -> 0
A43: 1. Novčani izdaci za otplatu glavnice kredita, pozajmica i drugih posudbi i dužničkih financijskih instrumenata | G43: 034 | H43: 0 | I43: 0
A44: 2. Novčani izdaci za isplatu dividendi | G44: 035 | H44: 0 | I44: 0
A45: 3. Novčani izdaci za financijski najam | G45: 036 | H45: 0 | I45: 0
A46: 4. Novčani izdaci za otkup vlastitih dionica i smanjenje temeljnog (upisanog) kapitala | G46: 037 | H46: 0 | I46: 0
A47: 5. Ostali novčani izdaci od financijskih aktivnosti | G47: 038 | H47: 0 | I47: 0
A48: VI. Ukupno novčani izdaci od financijskih aktivnosti (AOP 034 do 038) | G48: 039 | H48: =H47+H46+H45+H44+H43 -> 0 | I48: =I47+I46+I45+I44+I43 -> 0
A49: C) NETO NOVČANI TOKOVI OD FINANCIJSKIH AKTIVNOSTI (AOP 033+039) | G49: 040 | H49: =H48+H42 -> 0 | I49: =I48+I42 -> 0
A50: 1. Nerealizirane tečajne razlike po novcu i novčanim ekvivalentima | G50: 041 | H50: 0 | I50: 0
A51: D) NETO POVEĆANJE ILI SMANJENJE NOVČANIH TOKOVA (AOP 014 + 028 + 040 + 041) | G51: 042 | H51: =H21+H36+H49+H50 -> 0 | I51: =I21+I36+I49+I50 -> 0
A52: E) NOVAC I NOVČANI EKVIVALENTI NA POČETKU RAZDOBLJA | G52: 043 | H52: 0 | I52: 0
A53: F) NOVAC I NOVČANI EKVIVALENTI NA KRAJU RAZDOBLJA (AOP 042+043) | G53: 044 | H53: =H52+H51 -> 0 | I53: =I52+I51 -> 0

Sheet PK
A1: IZVJEŠTAJ O PROMJENAMA KAPITALA
C2: za razdoblje od | E2: 2025-01-01 | F2: do | G2: 2025-09-30 | X2: u eurima
A3: Opis pozicije | G3: AOP oznaka | H3: Raspodjeljivo imateljima kapitala matice | X3: Manjinski (nekontrolirajući) interes | Y3: Ukupno kapital i rezerve
H4: Temeljni (upisani) kapital | I4: Kapitalne rezerve | J4: Zakonske rezerve | K4: Rezerve za vlastite dionice | L4: Vlastite dionice i udjeli (odbitna stavka) | M4: Statutarne rezerve | N4: Ostale rezerve | O4: Revalorizacijske rezerve | P4: Fer vrijednost financijske imovine kroz ostalu sveobuhvatnu dobit (raspoloživa za prodaju) | Q4: Učinkoviti dio zaštite novčanih tokova | R4: Učinkoviti dio zaštite neto ulaganja u inozemstvo | S4: Ostale rezerve fer vrijednosti | T4: Tečajne razlike iz preračuna inozemnog poslovanja | U4: Zadržana dobit / preneseni gubitak | V4: Dobit / gubitak poslovne godine | W4: Ukupno raspodjeljivo imateljima kapitala matice
A5: 1 | G5: 2 | H5: 3 | I5: 4 | J5: 5 | K5: 6 | L5: 7 | M5: 8 | N5: 9 | O5: 10 | P5: 11 | Q5: 12 | R5: 13 | S5: 14 | T5: 15 | U5: 16 | V5: 17 | W5: 18 (3 do 6 - 7 + 8 do 17) | X5: 19 | Y5: 20 (18+19)
A6: Prethodno razdoblje
A7: 1. Stanje na dan početka prethodne poslovne godine | G7: 01 | H7: 54,594,592 | I7: 25,938,305 | J7: 885,798 | K7: 2,772,641 | L7: 871,127 | M7: 16,639 | N7: 6,880,988 | O7: -3,796,100 | P7: 0 | Q7: 0 | R7: 0 | S7: 0 | T7: -6,626,452 | U7: 19,939,404 | V7: -1,271,328 | W7: =H7+I7+J7+K7-L7+M7+N7+O7+P7+Q7+R7+U7+V7+S7+T7 -> 98,463,360 | X7: 0 | Y7: =W7+X7 -> 98,463,360
A8: 2. Promjene računovodstvenih politika | G8: 02 | H8: 0 | I8: 0 | J8: 0 | K8: 0 | L8: 0 | M8: 0 | N8: 0 | O8: 0 | P8: 0 | Q8: 0 | R8: 0 | S8: 0 | T8: 0 | U8: 0 | V8: 0 | W8: =H8+I8+J8+K8-L8+M8+N8+O8+P8+Q8+R8+U8+V8+S8+T8 -> 0 | X8: 0 | Y8: =W8+X8 -> 0
A9: 3. Ispravak pogreški | G9: 03 | H9: 0 | I9: 0 | J9: 0 | K9: 0 | L9: 0 | M9: 0 | N9: 0 | O9: 0 | P9: 0 | Q9: 0 | R9: 0 | S9: 0 | T9: 0 | U9: 0 | V9: 0 | W9: 0 | X9: 0 | Y9: 0
A10: 4. Stanje na dan početka prethodne poslovne godine (prepravljeno) (AOP 01 do 03) | G10: 04 | H10: =H7+H8+H9 -> 54,594,592 | I10: =I7+I8+I9 -> 25,938,305 | J10: 885,798 | K10: =K7+K8+K9 -> 2,772,641 | L10: 871,127 | M10: 16,639 | N10: 6,880,988 | O10: -3,796,100 | P10: 0 | Q10: 0 | R10: 0 | S10: 0 | T10: -6,626,452 | U10: 19,939,404 | V10: -1,271,328 | W10: 98,463,360 | X10: 0 | Y10: 98,463,360
A11: 5. Dobit/gubitak razdoblja | G11: 05 | H11: 0 | I11: 0 | J11: 0 | K11: 0 | L11: 0 | M11: 0 | N11: 0 | O11: 0 | P11: 0 | Q11: 0 | R11: 0 | S11: 0 | T11: 0 | U11: 0 | V11: 581,642 | W11: =H11+I11+J11+K11-L11+M11+N11+O11+P11+Q11+R11+U11+V11+S11+T11 -> 581,642 | X11: 0 | Y11: =W11+X11 -> 581,642
A12: 6. Tečajne razlike iz preračuna inozemnog poslovanja | G12: 06 | H12: 0 | I12: 0 | J12: 0 | K12: 0 | L12: 0 | M12: 0 | N12: 0 | O12: 0 | P12: 0 | Q12: 0 | R12: 0 | S12: 0 | T12: -270,758 | U12: 0 | V12: 0 | W12: -270,758 | X12: 0 | Y12: -270,758
A13: 7. Promjene revalorizacijskih rezervi dugotrajne materijalne i nematerijalne imovine | G13: 07 | H13: 0 | I13: 0 | J13: 0 | K13: 0 | L13: 0 | M13: 0 | N13: 0 | O13: 0 | P13: 0 | Q13: 0 | R13: 0 | S13: 0 | T13: 0 | U13: 0 | V13: 0 | W13: 0 | X13: 0 | Y13: 0
A14: 8. Dobitak ili gubitak s osnove naknadnog vrednovanja financijske imovine prema fer vrijednosti kroz ostalu sveobuhvatnu dobit (raspoloživa za prodaju) | G14: 08 | H14: 0 | I14: 0 | J14: 0 | K14: 0 | L14: 0 | M14: 0 | N14: 0 | O14: 0 | P14: 0 | Q14: 0 | R14: 0 | S14: 0 | T14: 0 | U14: 0 | V14: 0 | W14: 0 | X14: 0 | Y14: 0
A15: 9. Dobitak ili gubitak s osnove učinkovite zaštite novčanog toka | G15: 09 | H15: 0 | I15: 0 | J15: 0 | K15: 0 | L15: 0 | M15: 0 | N15: 0 | O15: 0 | P15: 0 | Q15: 0 | R15: 0 | S15: 0 | T15: 0 | U15: 0 | V15: 0 | W15: 0 | X15: 0 | Y15: 0
A16: 10. Dobitak ili gubitak s osnove učinkovite zaštite neto ulaganja u inozemstvu | G16: 10 | H16: 0 | I16: 0 | J16: 0 | K16: 0 | L16: 0 | M16: 0 | N16: 0 | O16: 0 | P16: 0 | Q16: 0 | R16: 0 | S16: 0 | T16: 0 | U16: 0 | V16: 0 | W16: 0 | X16: 0 | Y16: 0
A17: 11. Udio u ostaloj sveobuhvatnoj dobiti/gubitku društava povezanih sudjelujućim interesom | G17: 11 | H17: 0 | I17: 0 | J17: 0 | K17: 0 | L17: 0 | M17: 0 | N17: 0 | O17: 0 | P17: 0 | Q17: 0 | R17: 0 | S17: 0 | T17: 0 | U17: 0 | V17: 0 | W17: 0 | X17: 0 | Y17: 0
A18: 12. Aktuarski dobici/gubici po planovima definiranih primanja | G18: 12 | H18: 0 | I18: 0 | J18: 0 | K18: 0 | L18: 0 | M18: 0 | N18: 0 | O18: 0 | P18: 0 | Q18: 0 | R18: 0 | S18: 0 | T18: 0 | U18: 0 | V18: 0 | W18: 0 | X18: 0 | Y18: 0
A19: 13. Ostale nevlasničke promjene kapitala | G19: 13 | H19: 0 | I19: 0 | J19: 0 | K19: 0 | L19: 0 | M19: 0 | N19: 0 | O19: -476,880 | P19: 0 | Q19: 0 | R19: 0 | S19: 0 | T19: 0 | U19: 0 | V19: 0 | W19: -476,880 | X19: 0 | Y19: -476,880
A20: 14. Porez na transakcije priznate direktno u kapitalu | G20: 14 | H20: 0 | I20: 0 | J20: 0 | K20: 0 | L20: 0 | M20: 0 | N20: 0 | O20: 85,838 | P20: 0 | Q20: 0 | R20: 0 | S20: 0 | T20: 0 | U20: 0 | V20: 0 | W20: 85,838 | X20: 0 | Y20: 85,838
A21: 15. Smanjenje temeljnog (upisanog) kapitala (osim u postupku predstečajne nagodbe i nastalog reinvestiranjem dobiti) | G21: 15 | H21: 0 | I21: 0 | J21: 0 | K21: 0 | L21: 0 | M21: 0 | N21: 0 | O21: 0 | P21: 0 | Q21: 0 | R21: 0 | S21: 0 | T21: 0 | U21: 0 | V21: 0 | W21: 0 | X21: 0 | Y21: 0
A22: 16. Smanjenje temeljnog (upisanog) kapitala u postupku predstečajne nagodbe | G22: 16 | H22: 0 | I22: 0 | J22: 0 | K22: 0 | L22: 0 | M22: 0 | N22: 0 | O22: 0 | P22: 0 | Q22: 0 | R22: 0 | S22: 0 | T22: 0 | U22: 0 | V22: 0 | W22: 0 | X22: 0 | Y22: 0
A23: 17. Smanjenje temeljnog (upisanog) kapitala nastalog reinvestiranjem dobiti | G23: 17 | H23: 0 | I23: 0 | J23: 0 | K23: 0 | L23: 0 | M23: 0 | N23: 0 | O23: 0 | P23: 0 | Q23: 0 | R23: 0 | S23: 0 | T23: 0 | U23: 0 | V23: 0 | W23: 0 | X23: 0 | Y23: 0
A24: 18. Otkup vlastitih dionica/udjela | G24: 18 | H24: 0 | I24: 0 | J24: 0 | K24: 0 | L24: 0 | M24: 0 | N24: 0 | O24: 0 | P24: 0 | Q24: 0 | R24: 0 | S24: 0 | T24: 0 | U24: 0 | V24: 0 | W24: 0 | X24: 0 | Y24: 0
A25: 19. Uplate članova/dioničara | G25: 19 | H25: 0 | I25: 0 | J25: 0 | K25: 0 | L25: 0 | M25: 0 | N25: 0 | O25: 0 | P25: 0 | Q25: 0 | R25: 0 | S25: 0 | T25: 0 | U25: 0 | V25: 0 | W25: 0 | X25: 0 | Y25: 0
A26: 20. Isplata udjela u dobiti/dividende | G26: 20 | H26: 0 | I26: 0 | J26: 0 | K26: 0 | L26: 0 | M26: 0 | N26: 0 | O26: 0 | P26: 0 | Q26: 0 | R26: 0 | S26: 0 | T26: 0 | U26: 0 | V26: 0 | W26: 0 | X26: 0 | Y26: 0
A27: 21. Ostale raspodjele i isplate članovima/dioničarima | G27: 21 | H27: 0 | I27: 0 | J27: 0 | K27: -1,901,514 | L27: 0 | M27: 0 | N27: 1,612,517 | O27: 296,951 | P27: 0 | Q27: 0 | R27: 0 | S27: 0 | T27: 0 | U27: -8,350 | V27: 0 | W27: -396 | X27: 0 | Y27: -396
A28: 22. Prijenos u pozicije rezervi po godišnjem rasporedu | G28: 22 | H28: 0 | I28: 0 | J28: 0 | K28: 0 | L28: 0 | M28: 0 | N28: 0 | O28: 0 | P28: 0 | Q28: 0 | R28: 0 | S28: 0 | T28: 0 | U28: -1,271,328 | V28: 1,271,328 | W28: 0 | X28: 0 | Y28: 0
A29: 23. Povećanje rezervi u postupku predstečajne nagodbe | G29: 23 | H29: 0 | I29: 0 | J29: 0 | K29: 0 | L29: 0 | M29: 0 | N29: 0 | O29: 0 | P29: 0 | Q29: 0 | R29: 0 | S29: 0 | T29: 0 | U29: 0 | V29: 0 | W29: 0 | X29: 0 | Y29: 0
A30: 24. Stanje na zadnji dan izvještajnog razdoblja prethodne poslovne godine (04 do 23) | G30: 24 | H30: =SUM(H10:H29) -> 54,594,592 | I30: =SUM(I10:I29) -> 25,938,305 | J30: 885,798 | K30: 871,127 | L30: 871,127 | M30: 16,639 | N30: 8,493,505 | O30: -3,890,191 | P30: 0 | Q30: 0 | R30: 0 | S30: 0 | T30: -6,897,210 | U30: 18,659,726 | V30: 581,642 | W30: 98,382,806 | X30: 0 | Y30: 98,382,806
A31: DODATAK IZVJEŠTAJU O PROMJENAMA KAPITALA (popunjava poduzetnik obveznik primjene MSFI-a)
A32: I. OSTALA SVEOBUHVATNA DOBIT PRETHODNOG RAZDOBLJA, UMANJENO ZA POREZE (AOP 06 do 14) | G32: 25 | H32: =SUM(H12:H20) -> 0 | I32: =SUM(I12:I20) -> 0 | J32: 0 | K32: 0 | L32: 0 | M32: 0 | N32: 0 | O32: -391,042 | P32: 0 | Q32: 0 | R32: 0 | S32: =SUM(S12:S20) -> 0 | T32: -270,758 | U32: 0 | V32: 0 | W32: -661,800 | X32: 0 | Y32: -661,800
A33: II. SVEOBUHVATNA DOBIT ILI GUBITAK PRETHODNOG RAZDOBLJA (AOP 05+25) | G33: 26 | H33: =H11+H32 -> 0 | I33: =I11+I32 -> 0 | J33: 0 | K33: 0 | L33: 0 | M33: 0 | N33: 0 | O33: -391,042 | P33: 0 | Q33: 0 | R33: 0 | S33: =S11+S32 -> 0 | T33: -270,758 | U33: 0 | V33: 581,642 | W33: -80,158 | X33: 0 | Y33: -80,158
A34: III. TRANSAKCIJE S VLASNICIMA PRETHODNOG RAZDOBLJA PRIZNATE DIREKTNO U KAPITALU (AOP 15 do 23) | G34: 27 | H34: =SUM(H21:H29) -> 0 | I34: =SUM(I21:I29) -> 0 | J34: 0 | K34: -1,901,514 | L34: 0 | M34: 0 | N34: 1,612,517 | O34: 296,951 | P34: 0 | Q34: 0 | R34: 0 | S34: =SUM(S21:S29) -> 0 | T34: 0 | U34: -1,279,678 | V34: 1,271,328 | W34: -396 | X34: 0 | Y34: -396
A35: Tekuće razdoblje
A36: 1. Stanje na dan početka tekuće poslovne godine | G36: 28 | H36: 54,594,592 | I36: 25,893,236 | J36: 885,798 | K36: 793,595 | L36: 793,595 | M36: 16,639 | N36: 9,109,602 | O36: -4,060,866 | P36: 0 | Q36: 0 | R36: 0 | S36: 0 | T36: -7,725,738 | U36: 18,062,299 | V36: 2,131,791 | W36: =H36+I36+J36+K36-L36+M36+N36+O36+P36+Q36+R36+U36+V36+S36+T36 -> 98,907,353 | X36: 0 | Y36: =W36+X36 -> 98,907,353
A37: 2. Promjene računovodstvenih politika | G37: 29 | H37: 0 | I37: 0 | J37: 0 | K37: 0 | L37: 0 | M37: 0 | N37: 0 | O37: 0 | P37: 0 | Q37: 0 | R37: 0 | S37: 0 | T37: 0 | U37: 0 | V37: 0 | W37: =H37+I37+J37+K37-L37+M37+N37+O37+P37+Q37+R37+U37+V37+S37+T37 -> 0 | X37: 0 | Y37: 0
A38: 3. Ispravak pogreški | G38: 30 | H38: 0 | I38: 0 | J38: 0 | K38: 0 | L38: 0 | M38: 0 | N38: 0 | O38: 0 | P38: 0 | Q38: 0 | R38: 0 | S38: 0 | T38: 0 | U38: 0 | V38: 0 | W38: 0 | X38: 0 | Y38: 0
A39: 4. Stanje na dan početka tekuće poslovne godine (prepravljeno) (AOP 28 do 30) | G39: 31 | H39: =H36+H37+H38 -> 54,594,592 | I39: =I36+I37+I38 -> 25,893,236 | J39: 885,798 | K39: 793,595 | L39: 793,595 | M39: 16,639 | N39: 9,109,602 | O39: -4,060,866 | P39: 0 | Q39: 0 | R39: 0 | S39: 0 | T39: -7,725,738 | U39: 18,062,299 | V39: 2,131,791 | W39: 98,907,353 | X39: 0 | Y39: 98,907,353
A40: 5. Dobit/gubitak razdoblja | G40: 32 | H40: 0 | I40: 0 | J40: 0 | K40: 0 | L40: 0 | M40: 0 | N40: 0 | O40: 0 | P40: 0 | Q40: 0 | R40: 0 | S40: 0 | T40: 0 | U40: 0 | V40: 9,304,314 | W40: =H40+I40+J40+K40-L40+M40+N40+O40+P40+Q40+R40+U40+V40+S40+T40 -> 9,304,314 | X40: 0 | Y40: =W40+X40 -> 9,304,314
A41: 6. Tečajne razlike iz preračuna inozemnog poslovanja | G41: 33 | H41: 0 | I41: 0 | J41: 0 | K41: 0 | L41: 0 | M41: 0 | N41: 0 | O41: 0 | P41: 0 | Q41: 0 | R41: 0 | S41: 0 | T41: -158,555 | U41: 0 | V41: 0 | W41: -158,555 | X41: 0 | Y41: -158,555
A42: 7. Promjene revalorizacijskih rezervi dugotrajne materijalne i nematerijalne imovine | G42: 34 | H42: 0 | I42: 0 | J42: 0 | K42: 0 | L42: 0 | M42: 0 | N42: 0 | O42: 0 | P42: 0 | Q42: 0 | R42: 0 | S42: 0 | T42: 0 | U42: 0 | V42: 0 | W42: 0 | X42: 0 | Y42: 0
A43: 8. Dobitak ili gubitak s osnove naknadnog vrednovanja financijske imovine prema fer vrijednosti kroz ostalu sveobuhvatnu dobit (raspoloživa za prodaju) | G43: 35 | H43: 0 | I43: 0 | J43: 0 | K43: 0 | L43: 0 | M43: 0 | N43: 0 | O43: 0 | P43: 0 | Q43: 0 | R43: 0 | S43: 0 | T43: 0 | U43: 0 | V43: 0 | W43: 0 | X43: 0 | Y43: 0
A44: 9. Dobitak ili gubitak s osnove učinkovite zaštite novčanog toka | G44: 36 | H44: 0 | I44: 0 | J44: 0 | K44: 0 | L44: 0 | M44: 0 | N44: 0 | O44: 0 | P44: 0 | Q44: 0 | R44: 0 | S44: 0 | T44: 0 | U44: 0 | V44: 0 | W44: 0 | X44: 0 | Y44: 0
A45: 10. Dobitak ili gubitak s osnove učinkovite zaštite neto ulaganja u inozemstvu | G45: 37 | H45: 0 | I45: 0 | J45: 0 | K45: 0 | L45: 0 | M45: 0 | N45: 0 | O45: 0 | P45: 0 | Q45: 0 | R45: 0 | S45: 0 | T45: 0 | U45: 0 | V45: 0 | W45: 0 | X45: 0 | Y45: 0
A46: 11. Udio u ostaloj sveobuhvatnoj dobiti/gubitku društava povezanih sudjelujućim interesom | G46: 38 | H46: 0 | I46: 0 | J46: 0 | K46: 0 | L46: 0 | M46: 0 | N46: 0 | O46: 0 | P46: 0 | Q46: 0 | R46: 0 | S46: 0 | T46: 0 | U46: 0 | V46: 0 | W46: 0 | X46: 0 | Y46: 0
A47: 12. Aktuarski dobici/gubici po planovima definiranih primanja | G47: 39 | H47: 0 | I47: 0 | J47: 0 | K47: 0 | L47: 0 | M47: 0 | N47: 0 | O47: 0 | P47: 0 | Q47: 0 | R47: 0 | S47: 0 | T47: 0 | U47: 0 | V47: 0 | W47: 0 | X47: 0 | Y47: 0
A48: 13. Ostale nevlasničke promjene kapitala | G48: 40 | H48: 0 | I48: 0 | J48: 0 | K48: 0 | L48: 0 | M48: 0 | N48: 0 | O48: 1,075,615 | P48: 0 | Q48: 0 | R48: 0 | S48: 0 | T48: 0 | U48: 0 | V48: 0 | W48: 1,075,615 | X48: 0 | Y48: 1,075,615
A49: 14. Porez na transakcije priznate direktno u kapitalu | G49: 41 | H49: 0 | I49: 0 | J49: 0 | K49: 0 | L49: 0 | M49: 0 | N49: 0 | O49: -193,611 | P49: 0 | Q49: 0 | R49: 0 | S49: 0 | T49: 0 | U49: 0 | V49: 0 | W49: -193,611 | X49: 0 | Y49: -193,611
A50: 15. Smanjenje temeljnog (upisanog) kapitala (osim u postupku predstečajne nagodbe i nastalog reinvestiranjem dobiti) | G50: 42 | H50: 0 | I50: 0 | J50: 0 | K50: 0 | L50: 0 | M50: 0 | N50: 0 | O50: 0 | P50: 0 | Q50: 0 | R50: 0 | S50: 0 | T50: 0 | U50: 0 | V50: 0 | W50: 0 | X50: 0 | Y50: 0
A51: 16. Smanjenje temeljnog (upisanog) kapitala u postupku predstečajne nagodbe | G51: 43 | H51: 0 | I51: 0 | J51: 0 | K51: 0 | L51: 0 | M51: 0 | N51: 0 | O51: 0 | P51: 0 | Q51: 0 | R51: 0 | S51: 0 | T51: 0 | U51: 0 | V51: 0 | W51: 0 | X51: 0 | Y51: 0
A52: 17. Smanjenje temeljnog (upisanog) kapitala nastalog reinvestiranjem dobiti | G52: 44 | H52: 0 | I52: 0 | J52: 0 | K52: 0 | L52: 0 | M52: 0 | N52: 0 | O52: 0 | P52: 0 | Q52: 0 | R52: 0 | S52: 0 | T52: 0 | U52: 0 | V52: 0 | W52: 0 | X52: 0 | Y52: 0
A53: 18. Otkup vlastitih dionica/udjela | G53: 45 | H53: 0 | I53: 0 | J53: 0 | K53: 0 | L53: 0 | M53: 0 | N53: 0 | O53: 0 | P53: 0 | Q53: 0 | R53: 0 | S53: 0 | T53: 0 | U53: 0 | V53: 0 | W53: 0 | X53: 0 | Y53: 0
A54: 19. Uplate članova/dioničara | G54: 46 | H54: 0 | I54: 0 | J54: 0 | K54: 0 | L54: 0 | M54: 0 | N54: 0 | O54: 0 | P54: 0 | Q54: 0 | R54: 0 | S54: 0 | T54: 0 | U54: 0 | V54: 0 | W54: 0 | X54: 0 | Y54: 0
A55: 20. Isplata udjela u dobiti/dividende | G55: 47 | H55: 0 | I55: 0 | J55: 0 | K55: 0 | L55: 0 | M55: 0 | N55: 0 | O55: 0 | P55: 0 | Q55: 0 | R55: 0 | S55: 0 | T55: 0 | U55: 0 | V55: 0 | W55: 0 | X55: 0 | Y55: 0
A56: 21. Ostale raspodjele i isplate članovima/dioničarima | G56: 48 | H56: 0 | I56: 0 | J56: 0 | K56: 0 | L56: 0 | M56: 0 | N56: 0 | O56: 421,019 | P56: 0 | Q56: 0 | R56: 0 | S56: 0 | T56: 0 | U56: -419,974 | V56: 0 | W56: 1,045 | X56: 0 | Y56: 1,045
A57: 22. Prijenos po godišnjem rasporedu | G57: 49 | H57: 0 | I57: 0 | J57: 0 | K57: 0 | L57: 0 | M57: 0 | N57: 0 | O57: 0 | P57: 0 | Q57: 0 | R57: 0 | S57: 0 | T57: 0 | U57: 2,131,791 | V57: -2,131,791 | W57: 0 | X57: 0 | Y57: 0
A58: 23. Povećanje rezervi u postupku predstečajne nagodbe | G58: 50 | H58: 0 | I58: 0 | J58: 0 | K58: 0 | L58: 0 | M58: 0 | N58: 0 | O58: 0 | P58: 0 | Q58: 0 | R58: 0 | S58: 0 | T58: 0 | U58: 0 | V58: 0 | W58: 0 | X58: 0 | Y58: 0
A59: 24. Stanje na zadnji dan izvještajnog razdoblja tekuće poslovne godine (AOP 31 do 50) | G59: 51 | H59: =SUM(H39:H58) -> 54,594,592 | I59: =SUM(I39:I58) -> 25,893,236 | J59: 885,798 | K59: 793,595 | L59: 793,595 | M59: 16,639 | N59: 9,109,602 | O59: -2,757,843 | P59: 0 | Q59: 0 | R59: 0 | S59: 0 | T59: -7,884,293 | U59: 19,774,116 | V59: 9,304,314 | W59: 108,936,161 | X59: 0 | Y59: 108,936,161
A60: DODATAK IZVJEŠTAJU O PROMJENAMA KAPITALA (popunjava poduzetnik obveznik primjene MSFI-a)
A61: I. OSTALA SVEOBUHVATNA DOBIT TEKUĆEG RAZDOBLJA, UMANJENO ZA POREZE (AOP 33 do 41) | G61: 52 | H61: =SUM(H41:H49) -> 0 | I61: =SUM(I41:I49) -> 0 | J61: 0 | K61: 0 | L61: 0 | M61: 0 | N61: 0 | O61: 882,004 | P61: 0 | Q61: 0 | R61: 0 | S61: =SUM(S41:S49) -> 0 | T61: -158,555 | U61: 0 | V61: 0 | W61: 723,449 | X61: 0 | Y61: 723,449
A62: II. SVEOBUHVATNA DOBIT ILI GUBITAK TEKUĆEG RAZDOBLJA (AOP 32 + 52) | G62: 53 | H62: =H40+H61 -> 0 | I62: =I40+I61 -> 0 | J62: 0 | K62: 0 | L62: 0 | M62: 0 | N62: 0 | O62: 882,004 | P62: 0 | Q62: 0 | R62: 0 | S62: =S40+S61 -> 0 | T62: -158,555 | U62: 0 | V62: 9,304,314 | W62: 10,027,763 | X62: 0 | Y62: 10,027,763
A63: III. TRANSAKCIJE S VLASNICIMA TEKUĆEG RAZDOBLJA PRIZNATE DIREKTNO U KAPITALU (AOP 42 do 50) | G63: 54 | H63: =SUM(H50:H58) -> 0 | I63: =SUM(I50:I58) -> 0 | J63: 0 | K63: 0 | L63: 0 | M63: 0 | N63: 0 | O63: 421,019 | P63: 0 | Q63: 0 | R63: 0 | S63: =SUM(S50:S58) -> 0 | T63: 0 | U63: 1,711,817 | V63: -2,131,791 | W63: 1,045 | X63: 0 | Y63: 1,045

Sheet Bilješke
A1: BILJEŠKE UZ FINANCIJSKE IZVJEŠTAJE - TFI (koji se sastavljaju za tromjesečna razdoblja) Naziv izdavatelja: AD PLASTIK d.d. Sjedište: Ul. Antuna Gustava Matoša 8, 21210, Solin, Hrvatska OIB: 48351740621; MBS: 060007090 Izvještajno razdoblje: 1.1.2025. do 30.9.2025. Bilješke uz financijske izvještaje priložene su u Nerevidiranom financijskom izvještaju poslovodstva AD Plastik Grupe. Nerevidirani financijski izvještaj poslovodstva AD Plastik Grupe je dostupan na internet stranici Zagrebačke burze. Integrirani godišnji izvještaj AD Plastik Grupe za 2024. godinu je dostupan na internet stranici Zagrebačke burze. Računovodstvene politike koje se primjenjuju prilikom sastavljanja financijskih izvještaja za izvještajno razdoblje su iste kao i u posljednjim godišnjim financijskim izvještajima. Društvo AD Plastik d.d. je za potrebe ovisnih društava izdalo korporativne garancije u sljedećim iznosima: bankama 7.700 tisuća eura, te dobavljačima 50 tisuća eura. Iznos koje AD Plastik Grupa duguje i koji dospijeva nakon više od pet godina iznosi 412 tisuća eura. Prosječan broj zaposlenih AD Plastik Grupe u periodu od 1.1.2025. do 30.9.2025. godine bio je 1.789. U nematerijalnoj imovini u periodu od 1.1.2025. do 30.9.2025. godine kapitaliziran je trošak neto plaća i nadnica od 430.391 eura, trošak poreza i doprinosa iz plaća 177.777 eura te trošak doprinosa na plaće 94.062 eura. Kroz izvještajno razdoblje došlo je do smanjenja odgođene porezne imovine u iznosu od 443 tisuća eura, te povećanja odgođene porezne obveze u iznosu od 84 tisuća eura. Na 31.12.2024. odgođena porezna imovina AD Plastik Grupe iznosi 3.298 tisuća eura, dok odgođena porezna obveza iznosi 938 tisuća eura. Razlika u novcu i novčanim ekvivalentima u izvještaju o novčanom tijeku u odnosu na izvještaj o financijskom položaju u iznosu od 530 tisuća eura odnosi se na stanje prekoračenja po tekućem računu.
